bitfinex-derivatives/quotes_BTCF0:USTF0_20240829
["timestamp","ask_amount","ask_price","bid_price","bid_amount"]
[1724948909547,3.934756,60674.0,60673.0,0.003]
[1724948910347,3.934756,60674.0,60673.0,0.004]
[1724948910544,3.95478264,60674.0,60673.0,0.004]
[1724948911146,3.95478264,60674.0,60673.0,0.003]
[1724948911448,3.97078264,60674.0,60673.0,0.002]
[1724948911645,5.06522264,60674.0,60673.0,0.002]
[1724948911841,1.29522264,60674.0,60673.0,0.002]
[1724948913441,1.29522264,60674.0,60668.0,0.082386]
[1724948913442,0.28,60672.0,60668.0,0.082386]
[1724948913643,0.28,60672.0,60661.0,0.0038]
[1724948913644,0.3608,60670.0,60661.0,0.0038]
[1724948913842,0.3608,60663.0,60658.0,0.082399]
[1724948914056,0.082399,60659.0,60658.0,0.082399]
[1724948914750,3.852399,60659.0,60658.0,0.082399]
[1724948915149,0.082403,60656.0,60655.0,0.15982525]
[1724948915354,0.072403,60656.0,60655.0,0.14004]
[1724948915658,0.072403,60656.0,60655.0,0.222444]
[1724948915845,0.082401,60658.0,60657.0,0.082401]
[1724948916042,0.001,60659.0,60655.0,0.50084]
[1724948916258,0.082403,60656.0,60655.0,0.14004]
[1724948917545,0.002,60659.0,60658.0,0.007]
[1724948917748,0.001,60659.0,60658.0,0.0894]
[1724948919256,0.001,60659.0,60658.0,0.0984]
[1724948919257,0.002,60659.0,60658.0,0.0984]
[1724948920154,0.002,60659.0,60658.0,0.1808]
[1724948920353,0.001,60659.0,60658.0,0.0914]
[1724948920957,0.083399,60659.0,60658.0,0.009]
[1724948921350,0.165798,60659.0,60658.0,0.009]
[1724948922151,0.083399,60659.0,60658.0,0.009]
[1724948922748,0.001,60659.0,60658.0,0.0914]
[1724948923546,0.001,60659.0,60658.0,0.009]
[1724948923751,0.001,60659.0,60658.0,0.0914]
[1724948925461,0.083399,60659.0,60658.0,0.009]
[1724948925857,0.165798,60659.0,60658.0,0.009]
[1724948926564,0.083399,60659.0,60658.0,0.009]
[1724948927061,0.090399,60659.0,60658.0,0.01]
[1724948927261,0.090399,60659.0,60658.0,0.0924]
[1724948927857,0.089399,60659.0,60658.0,0.0844]
[1724948928051,0.095399,60659.0,60658.0,0.0844]
[1724948928857,0.013,60659.0,60658.0,0.0844]
[1724948932762,0.095399,60659.0,60658.0,0.0844]
[1724948935166,0.095399,60659.0,60658.0,0.002]
[1724948935564,0.177798,60659.0,60658.0,0.002]
[1724948937757,0.095399,60659.0,60658.0,0.002]
[1724948938158,0.095399,60659.0,60658.0,0.0844]
[1724948938361,0.013,60659.0,60658.0,0.4452]
[1724948939765,0.013,60659.0,60658.0,0.5276]
[1724948940569,0.10128799,60668.0,60658.0,0.5276]
[1724948940570,0.08239,60666.0,60665.0,0.082388]
[1724948940776,0.08239,60666.0,60665.0,0.443188]
[1724948941266,0.082399,60659.0,60658.0,0.002]
[1724948941461,0.082399,60659.0,60658.0,0.3628]
[1724948941661,0.082399,60659.0,60658.0,0.4452]
[1724948941973,0.163798,60659.0,60658.0,0.3618]
[1724948942273,0.080399,60659.0,60658.0,0.4432]
[1724948942673,0.086399,60659.0,60658.0,0.4442]
[1724948942873,0.086399,60659.0,60658.0,0.3618]
[1724948943074,0.086399,60659.0,60658.0,0.002]
[1724948943075,0.092399,60659.0,60658.0,0.002]
[1724948943874,0.11192014,60659.0,60658.0,0.002]
[1724948944474,3.88192014,60659.0,60658.0,0.002]
[1724948944970,3.96431914,60659.0,60658.0,0.002]
[1724948945171,3.88192014,60659.0,60658.0,0.002]
[1724948945481,3.96431914,60659.0,60658.0,0.002]
[1724948947876,3.96431914,60659.0,60655.0,0.14004]
[1724948947877,0.164806,60656.0,60655.0,0.14004]
[1724948948082,0.082407,60653.0,60652.0,0.00024721]
[1724948948377,0.164814,60653.0,60652.0,0.00024721]
[1724948949371,0.164814,60653.0,60652.0,0.00124721]
[1724948955878,0.525614,60653.0,60652.0,0.00124721]
[1724948956477,0.09775726,60655.0,60654.0,0.082405]
[1724948956478,0.082405,60655.0,60654.0,0.082405]
[1724948957077,0.082405,60654.0,60653.0,0.0488]
[1724948958182,0.082407,60653.0,60652.0,0.00124721]
[1724948958383,0.082407,60653.0,60652.0,0.00024721]
[1724948958995,0.082407,60653.0,60652.0,0.08265521]
[1724948960391,0.082403,60656.0,60655.0,0.082403]
[1724948961499,0.085403,60656.0,60655.0,0.082403]
[1724948961987,0.082407,60653.0,60652.0,0.08265521]
[1724948963186,0.082407,60653.0,60652.0,0.08365521]
[1724948965306,0.082404,60656.0,60655.0,0.082403]
[1724948965502,0.01952114,60659.0,60658.0,0.0824]
[1724948965793,0.00084,60662.0,60661.0,0.082396]
[1724948966093,0.00024721,60665.0,60659.0,0.082399]
[1724948966094,3.77024721,60665.0,60664.0,0.082392]
[1724948966409,0.00024721,60665.0,60664.0,0.443192]
[1724948967108,0.08263721,60665.0,60664.0,0.3608]
[1724948967904,0.16502721,60665.0,60664.0,0.3608]
[1724948968106,0.085403,60656.0,60654.0,0.3608]
[1724948968406,0.082405,60654.0,60653.0,0.228106]
[1724948969103,0.083403,60656.0,60653.0,0.1457]
[1724948969296,0.081403,60656.0,60655.0,0.443204]
[1724948969493,0.081403,60656.0,60655.0,0.082404]
[1724948971206,0.10136312,60656.0,60655.0,0.082404]
[1724948971715,0.001,60654.0,60653.0,0.1457]
[1724948971910,0.001,60654.0,60653.0,0.228107]
[1724948972300,0.083405,60654.0,60653.0,0.228107]
[1724948972498,0.082405,60654.0,60653.0,0.228107]
[1724948972897,0.082405,60654.0,60653.0,0.1457]
[1724948973097,0.082407,60653.0,60652.0,0.00024721]
[1724948975298,0.082407,60653.0,60652.0,0.00124721]
[1724948975997,0.086407,60653.0,60652.0,0.00124721]
[1724948976414,0.090407,60653.0,60652.0,0.00024721]
[1724948981211,0.18814416,60653.0,60652.0,0.00024721]
[1724948982012,0.090407,60653.0,60652.0,0.00024721]
[1724948982218,3.860407,60653.0,60652.0,0.00024721]
[1724948982711,3.95814416,60653.0,60652.0,0.00024721]
[1724948982903,3.91102684,60653.0,60652.0,0.00024721]
[1724948985108,3.860407,60653.0,60652.0,0.00024721]
[1724948986115,0.008,60653.0,60652.0,0.08265521]
[1724948987315,3.7738,60662.0,60652.0,0.00024721]
[1724948987316,0.09773716,60660.0,60652.0,0.00024721]
[1724948987517,0.00084,60662.0,60661.0,0.082396]
[1724948987720,0.00404721,60665.0,60661.0,0.082396]
[1724948987721,0.09798437,60665.0,60661.0,0.082396]
[1724948987925,0.082396,60661.0,60660.0,0.1438]
[1724948988420,0.082399,60660.0,60659.0,0.082399]
[1724948988617,0.0814,60658.0,60657.0,0.3608]
[1724948989424,0.082401,60657.0,60653.0,0.1438]
[1724948989624,0.442205,60654.0,60653.0,0.1438]
[1724948990121,0.081405,60654.0,60653.0,0.5046]
[1724948990313,0.080405,60654.0,60653.0,0.5046]
[1724948990812,0.080405,60654.0,60653.0,0.1438]
[1724948991021,0.082407,60653.0,60652.0,0.00024721]
[1724948991717,0.081407,60653.0,60652.0,0.00024721]
[1724948992319,0.081407,60653.0,60643.0,0.0038]
[1724948992320,0.082419,60644.0,60643.0,0.0038]
[1724948992619,0.082421,60643.0,60641.0,0.5076]
[1724948992817,3.77,60642.0,60641.0,0.5076]
[1724948993013,3.852422,60642.0,60641.0,0.3608]
[1724948993521,0.082422,60642.0,60641.0,0.3608]
[1724948994619,3.852422,60642.0,60641.0,0.3608]
[1724948994820,0.002,60644.0,60641.0,0.3608]
[1724948995211,0.002,60644.0,60643.0,0.08242]
[1724948995415,0.002,60644.0,60641.0,0.3608]
[1724948995619,0.001,60642.0,60641.0,0.3688]
[1724948995817,0.001,60642.0,60641.0,0.451223]
[1724948996013,0.002,60642.0,60641.0,0.458223]
[1724948996419,0.001,60644.0,60643.0,0.005]
[1724948996723,0.002,60644.0,60643.0,0.005]
[1724948997310,0.002,60644.0,60643.0,0.08742]
[1724948998119,0.001,60644.0,60643.0,0.08242]
[1724948998324,0.001,60644.0,60641.0,0.39535223]
[1724948998325,0.082416,60647.0,60644.0,0.082418]
[1724948998518,0.082416,60647.0,60645.0,0.175817]
[1724948998719,0.082416,60647.0,60646.0,0.127516]
[1724948999826,0.004,60647.0,60646.0,0.127516]
[1724949000624,0.008,60647.0,60646.0,0.127516]
[1724949000824,0.008,60647.0,60646.0,0.488316]
[1724949001721,0.004,60647.0,60646.0,0.488316]
[1724949001921,0.009,60647.0,60646.0,0.488316]
[1724949002121,0.005,60647.0,60646.0,0.488316]
[1724949002327,0.01,60647.0,60646.0,0.489316]
[1724949002527,0.01,60647.0,60646.0,0.571732]
[1724949003431,0.01,60647.0,60646.0,1.066412]
[1724949003633,0.01,60647.0,60646.0,0.571732]
[1724949003940,0.01,60647.0,60646.0,1.066412]
[1724949004125,0.01,60647.0,60646.0,1.666412]
[1724949005824,0.00024721,60648.0,60646.0,1.666412]
[1724949006026,0.00024721,60648.0,60647.0,0.65951]
[1724949006328,1e-08,60648.0,60647.0,0.741925]
[1724949006523,1e-08,60648.0,60647.0,1.341925]
[1724949006832,1e-08,60648.0,60647.0,0.741925]
[1724949007019,0.00500001,60648.0,60647.0,0.741925]
[1724949007224,0.00500001,60648.0,60647.0,1.341925]
[1724949007526,0.00500001,60648.0,60647.0,0.741925]
[1724949007828,0.01100001,60648.0,60647.0,0.742925]
[1724949008129,0.01100001,60648.0,60647.0,1.342925]
[1724949008928,0.01100001,60648.0,60647.0,0.248245]
[1724949009330,0.01200001,60648.0,60647.0,0.249245]
[1724949009632,0.01200001,60648.0,60647.0,0.002]
[1724949009845,0.17682801,60648.0,60647.0,0.002]
[1724949010526,3.94682801,60648.0,60647.0,0.002]
[1724949011630,3.86441401,60648.0,60647.0,0.002]
[1724949011833,0.006,60648.0,60647.0,0.460915]
[1724949012038,0.082409,60652.0,60651.0,0.082407]
[1724949012336,0.15459674,60652.0,60651.0,0.443207]
[1724949012527,0.13024551,60652.0,60651.0,0.443207]
[1724949012834,0.07218441,60652.0,60651.0,1.53785]
[1724949013032,0.11399309,60652.0,60651.0,1.02026]
[1724949013338,0.04183102,60652.0,60651.0,1.62126]
[1724949013536,0.11399309,60655.0,60651.0,1.64195766]
[1724949013839,0.1142403,60658.0,60657.0,0.082401]
[1724949014136,0.03207358,60658.0,60657.0,0.082401]
[1724949014933,0.14606667,60658.0,60657.0,0.082401]
[1724949015137,0.00024721,60658.0,60655.0,0.0484]
[1724949015330,0.0721767,60657.0,60655.0,0.0484]
[1724949015526,0.13023987,60656.0,60655.0,0.0484]
[1724949015740,0.0721767,60656.0,60655.0,0.0484]
[1724949016126,0.0711767,60657.0,60655.0,0.0484]
[1724949016336,0.1535797,60656.0,60655.0,0.0484]
[1724949017244,0.082405,60654.0,60653.0,0.082407]
[1724949017542,0.12275533,60654.0,60653.0,0.082407]
[1724949017844,0.12275533,60654.0,60651.0,0.38049766]
[1724949017845,0.082408,60652.0,60651.0,0.38049766]
[1724949018028,0.12275833,60652.0,60651.0,0.46290766]
[1724949018930,0.12175833,60652.0,60651.0,0.46290766]
[1724949019538,0.12175833,60652.0,60651.0,0.08241]
[1724949019740,0.082412,60649.0,60648.0,0.0481]
[1724949019927,0.25307584,60649.0,60648.0,0.0481]
[1724949020130,0.21272551,60649.0,60648.0,0.082414]
[1724949020339,0.081414,60648.0,60647.0,0.0475]
[1724949020543,0.081414,60648.0,60647.0,0.4083]
[1724949020943,0.08241,60652.0,60651.0,0.08241]
[1724949021141,0.11402283,60656.0,60647.0,0.4083]
[1724949021142,0.082404,60655.0,60654.0,0.082405]
[1724949021443,0.082406,60654.0,60649.0,0.082412]
[1724949021646,0.082407,60653.0,60649.0,0.082412]
[1724949022442,0.082407,60653.0,60652.0,0.3608]
[1724949022744,3.853244,60655.0,60652.0,0.443208]
[1724949022928,0.00024721,60658.0,60657.0,0.082401]
[1724949023345,0.00024721,60658.0,60657.0,0.443201]
[1724949024539,0.00024721,60658.0,60657.0,0.444201]
[1724949025643,0.00124721,60658.0,60657.0,0.445201]
[1724949025844,0.00124721,60658.0,60657.0,0.46498464]
[1724949026539,0.00124721,60658.0,60657.0,0.46398464]
[1724949026942,0.00224721,60658.0,60657.0,0.46298464]
[1724949027545,0.00124721,60658.0,60657.0,0.46298464]
[1724949027742,0.00324721,60658.0,60657.0,0.46298464]
[1724949028744,0.00424721,60658.0,60657.0,0.46298464]
[1724949029447,0.00224721,60658.0,60657.0,0.46298464]
[1724949029640,0.00424721,60658.0,60657.0,0.46298464]
[1724949031140,0.08664721,60658.0,60657.0,0.46298464]
[1724949033047,0.00424721,60658.0,60657.0,0.46298464]
[1724949034147,0.08664721,60658.0,60657.0,0.46298464]
[1724949035344,0.20940492,60658.0,60657.0,0.46298464]
[1724949036953,0.20940492,60658.0,60657.0,0.41668618]
[1724949038551,0.29180492,60658.0,60657.0,0.3608]
[1724949038848,0.37420492,60658.0,60657.0,0.3608]
[1724949039750,0.082407,60653.0,60652.0,0.3608]
[1724949039948,0.082406,60654.0,60651.0,0.082409]
[1724949039949,0.082408,60652.0,60651.0,0.082409]
[1724949040154,0.17333649,60652.0,60651.0,0.082409]
[1724949040849,0.20516908,60652.0,60651.0,0.082409]
[1724949041041,0.17333649,60652.0,60651.0,0.082409]
[1724949041553,0.17333649,60652.0,60651.0,0.085409]
[1724949041954,0.17133649,60652.0,60651.0,0.085409]
[1724949042456,0.080408,60652.0,60651.0,0.085409]
[1724949042755,0.080408,60652.0,60651.0,0.088409]
[1724949043460,0.081408,60652.0,60651.0,0.082409]
[1724949043649,0.082408,60652.0,60651.0,0.082409]
[1724949045052,0.082411,60650.0,60649.0,0.02044881]
[1724949045361,0.082411,60650.0,60649.0,0.082412]
[1724949046360,0.085411,60650.0,60649.0,0.082412]
[1724949046549,0.086411,60650.0,60649.0,0.082412]
[1724949052559,0.004,60650.0,60649.0,0.082412]
[1724949053467,0.03583295,60650.0,60649.0,0.082412]
[1724949053862,0.03583295,60650.0,60649.0,0.164824]
[1724949054063,0.004,60650.0,60649.0,0.741876]
[1724949054261,0.004,60650.0,60649.0,1.341876]
[1724949055770,0.10189098,60650.0,60649.0,1.341876]
[1724949055962,0.10189098,60650.0,60649.0,0.741876]
[1724949057171,0.004,60650.0,60649.0,1.341876]
[1724949057368,0.004,60650.0,60649.0,1.39115163]
[1724949057562,0.004,60650.0,60649.0,1.47356363]
[1724949058182,0.00024721,60658.0,60657.0,0.247203]
[1724949058393,0.00024721,60658.0,60657.0,0.608003]
[1724949058982,1e-08,60658.0,60657.0,0.608003]
[1724949059493,0.00300001,60658.0,60657.0,0.609003]
[1724949059687,0.00400001,60658.0,60657.0,0.610003]
[1724949061194,0.00400001,60658.0,60657.0,0.62968304]
[1724949061488,0.00400001,60658.0,60657.0,0.99048304]
[1724949062796,0.0038,60666.0,60665.0,0.16478]
[1724949062995,0.082384,60670.0,60669.0,0.082385]
[1724949063195,0.1024691,60670.0,60669.0,0.082385]
[1724949063794,0.0200851,60670.0,60669.0,0.082385]
[1724949063989,0.082383,60671.0,60670.0,0.082384]
[1724949064286,0.10193819,60676.0,60670.0,0.3608]
[1724949064488,0.00024721,60676.0,60675.0,0.082377]
[1724949064782,0.10265716,60676.0,60670.0,0.3608]
[1724949064989,0.10265716,60676.0,60669.0,0.002]
[1724949064990,0.3608,60671.0,60669.0,0.002]
[1724949065185,0.211668,60670.0,60669.0,0.002]
[1724949065685,0.28384414,60670.0,60669.0,0.001]
[1724949065891,0.082392,60664.0,60663.0,0.00024721]
[1724949066389,0.081392,60664.0,60663.0,0.36104721]
[1724949066590,0.442192,60664.0,60663.0,0.00024721]
[1724949066784,0.081392,60664.0,60663.0,0.00024721]
[1724949067189,0.081392,60664.0,60663.0,0.36204721]
[1724949067594,0.080392,60664.0,60663.0,0.36204721]
[1724949068389,0.080392,60664.0,60663.0,0.36304721]
[1724949069186,0.0671933,60670.0,60663.0,0.37137876]
[1724949069394,0.082385,60669.0,60668.0,0.3608]
[1724949070797,0.084385,60669.0,60668.0,0.3618]
[1724949071194,0.084385,60669.0,60668.0,0.444186]
[1724949071502,0.20712774,60669.0,60668.0,0.40076741]
[1724949072103,0.084385,60669.0,60668.0,0.40076741]
[1724949073701,0.084385,60669.0,60668.0,0.31838141]
[1724949076001,0.084385,60669.0,60668.0,0.40076741]
[1724949077700,0.084385,60669.0,60668.0,0.31838141]
[1724949079008,0.084385,60669.0,60668.0,0.40076741]
[1724949080219,0.17530219,60669.0,60668.0,0.40076741]
[1724949080603,0.09291719,60669.0,60668.0,0.48315341]
[1724949080803,0.09291719,60669.0,60668.0,0.40076741]
[1724949082615,0.15200911,60669.0,60668.0,0.40076741]
[1724949083017,0.15200911,60669.0,60668.0,0.33626742]
[1724949084912,0.09291719,60669.0,60668.0,0.33626742]
[1724949085822,0.09291719,60669.0,60668.0,0.41865342]
[1724949086013,0.15200911,60669.0,60668.0,0.41865342]
[1724949087221,0.09996467,60669.0,60668.0,0.41865342]
[1724949087810,0.09996467,60669.0,60668.0,0.50103942]
[1724949089318,0.002,60669.0,60668.0,0.50103942]
[1724949091709,0.002,60669.0,60668.0,0.94422542]
[1724949096132,0.27677,60669.0,60668.0,0.25388142]
[1724949096319,0.194385,60669.0,60668.0,0.002]
[1724949096520,0.27677,60669.0,60668.0,0.002]
[1724949096915,0.3263367,60669.0,60668.0,0.002]
[1724949097116,1.37033882,60669.0,60663.0,0.00024721]
[1724949097324,0.635584,60664.0,60663.0,0.00024721]
[1724949097914,4.405584,60664.0,60663.0,0.00024721]
[1724949098225,4.34504072,60664.0,60663.0,0.00024721]
[1724949098528,4.295584,60664.0,60663.0,0.00124721]
[1724949098929,4.295584,60664.0,60663.0,0.00224721]
[1724949099826,4.295584,60664.0,60663.0,0.00124721]
[1724949100026,4.297584,60664.0,60663.0,0.00224721]
[1724949102027,4.297584,60664.0,60636.0,0.3213]
[1724949102028,0.082411,60650.0,60649.0,0.130712]
[1724949103620,0.002,60650.0,60649.0,0.130712]
[1724949109131,0.084411,60650.0,60649.0,0.130712]
[1724949109523,0.002,60650.0,60649.0,0.130712]
[1724949111730,0.002,60650.0,60649.0,0.213124]
[1724949115131,0.002,60650.0,60649.0,0.295536]
[1724949116135,0.00024721,60656.0,60655.0,0.247212]
[1724949116336,0.00024721,60656.0,60655.0,0.608012]
[1724949116832,0.00024721,60656.0,60655.0,1.382612]
[1724949117445,0.00324721,60656.0,60655.0,1.383612]
[1724949118033,0.00324721,60656.0,60655.0,1.384612]
[1724949118228,0.00324721,60656.0,60655.0,0.890012]
[1724949121134,0.00324721,60656.0,60655.0,0.527608]
[1724949121543,0.00324721,60656.0,60655.0,0.084404]
[1724949121759,0.00324721,60656.0,60649.0,0.0483]
[1724949121760,0.082406,60654.0,60653.0,0.082405]
[1724949122256,0.082406,60654.0,60646.0,0.082416]
[1724949122257,0.164814,60653.0,60652.0,0.01945358]
[1724949122448,0.214214,60653.0,60652.0,0.01945358]
[1724949122649,0.082419,60644.0,60638.0,0.3213]
[1724949123046,0.081419,60644.0,60643.0,0.08266721]
[1724949123246,0.080419,60644.0,60643.0,0.08266721]
[1724949123847,0.080419,60644.0,60643.0,0.00524721]
[1724949124260,0.082436,60632.0,60631.0,0.04932195]
[1724949124464,0.3608,60632.0,60625.0,0.09051812]
[1724949124651,0.082444,60626.0,60625.0,0.09051912]
[1724949124958,0.078444,60626.0,60625.0,0.09051912]
[1724949125358,0.078444,60626.0,60625.0,0.082445]
[1724949125945,0.078444,60626.0,60625.0,0.096445]
[1724949126658,0.065444,60626.0,60625.0,0.094445]
[1724949126853,0.560284,60626.0,60625.0,0.012]
[1724949127054,0.921084,60626.0,60625.0,0.012]
[1724949127263,0.427244,60626.0,60625.0,0.025]
[1724949127450,1.812084,60626.0,60621.0,0.16608]
[1724949127756,0.082449,60622.0,60621.0,0.16484]
[1724949129157,0.074449,60622.0,60621.0,0.16484]
[1724949129556,0.65364,60626.0,60621.0,0.16484]
[1724949129557,0.36264,60626.0,60621.0,0.16484]
[1724949129757,0.3628,60626.0,60621.0,0.16484]
[1724949129950,0.001,60622.0,60621.0,0.26029]
[1724949130459,0.084449,60622.0,60621.0,0.26029]
[1724949130853,0.083449,60622.0,60621.0,0.26029]
[1724949131560,0.084449,60622.0,60621.0,0.17784]
[1724949132059,0.083449,60622.0,60621.0,0.16484]
[1724949132558,1.539129,60622.0,60621.0,0.16484]
[1724949132758,1.540129,60622.0,60621.0,0.16484]
[1724949132953,1.45768,60622.0,60616.0,0.082457]
[1724949133159,0.443256,60617.0,60616.0,0.082457]
[1724949133958,0.3608,60617.0,60616.0,0.082457]
[1724949134760,0.3748,60617.0,60616.0,0.082457]
[1724949136365,0.457256,60617.0,60616.0,0.082457]
[1724949137268,0.459256,60617.0,60616.0,0.082457]
[1724949137866,0.462256,60617.0,60616.0,0.082457]
[1724949138071,0.082462,60614.0,60613.0,0.08246]
[1724949139269,3.852462,60614.0,60613.0,0.08246]
[1724949139568,3.864462,60614.0,60613.0,0.08246]
[1724949139765,0.094462,60614.0,60613.0,0.08246]
[1724949140968,0.107462,60614.0,60613.0,0.08246]
[1724949141464,0.094462,60614.0,60613.0,0.08246]
[1724949141770,0.106462,60614.0,60613.0,0.08246]
[1724949142065,0.082467,60611.0,60607.0,0.3608]
[1724949142266,0.082467,60611.0,60610.0,0.082465]
[1724949143664,0.093467,60611.0,60610.0,0.082465]
[1724949144068,0.104467,60611.0,60610.0,0.082465]
[1724949144266,0.093467,60611.0,60610.0,0.082465]
[1724949144462,0.022,60611.0,60610.0,0.082465]
[1724949144659,0.022,60611.0,60610.0,0.247395]
[1724949144866,0.022,60611.0,60610.0,0.16493]
[1724949145971,0.011,60611.0,60610.0,0.16493]
[1724949146160,0.103464,60611.0,60610.0,0.082465]
[1724949146968,0.085464,60611.0,60610.0,0.082465]
[1724949147273,0.096464,60611.0,60610.0,0.082465]
[1724949149071,0.103464,60611.0,60610.0,0.082465]
[1724949149975,0.102464,60611.0,60610.0,0.082465]
[1724949150380,0.091464,60611.0,60610.0,0.082465]
[1724949150569,0.102464,60611.0,60610.0,0.082465]
[1724949150764,0.011,60611.0,60610.0,0.247395]
[1724949150967,0.021,60611.0,60610.0,0.16493]
[1724949151166,0.0038,60619.0,60618.0,0.082454]
[1724949151366,0.00024743,60620.0,60619.0,0.082453]
[1724949152170,0.08269943,60620.0,60619.0,0.082453]
[1724949153070,0.00024743,60620.0,60619.0,0.082453]
[1724949154075,0.01824743,60620.0,60619.0,0.083453]
[1724949154673,0.01824743,60620.0,60616.0,0.06600395]
[1724949154674,1.19557943,60620.0,60616.0,0.082456]
[1724949154873,0.09099442,60619.0,60616.0,0.082456]
[1724949155073,0.04038037,60618.0,60616.0,0.082456]
[1724949155280,0.03938037,60617.0,60616.0,0.082456]
[1724949155581,0.08999442,60617.0,60616.0,0.082456]
[1724949155877,0.12183637,60617.0,60616.0,0.082456]
[1724949156667,0.03938037,60617.0,60616.0,0.082456]
[1724949157180,0.05338037,60617.0,60616.0,0.082456]
[1724949157484,0.05238037,60617.0,60616.0,0.082456]
[1724949157884,0.10299442,60617.0,60616.0,0.082456]
[1724949158180,0.05238037,60617.0,60616.0,0.082456]
[1724949158571,0.06638037,60617.0,60616.0,0.083456]
[1724949160484,0.11699442,60617.0,60616.0,0.083456]
[1724949160778,0.2457257,60617.0,60616.0,0.165913]
[1724949161979,0.06638037,60617.0,60616.0,0.165913]
[1724949162478,0.11699442,60617.0,60616.0,0.165913]
[1724949162784,0.028,60617.0,60616.0,0.165913]
[1724949166193,0.028,60617.0,60616.0,0.083456]
[1724949166395,0.110456,60617.0,60616.0,0.083456]
[1724949167484,0.110456,60617.0,60616.0,0.001]
[1724949167485,0.192912,60617.0,60616.0,0.001]
[1724949167876,3.962912,60617.0,60616.0,0.001]
[1724949168386,0.192912,60617.0,60616.0,0.001]
[1724949169991,0.28391016,60617.0,60616.0,0.001]
[1724949170487,0.23329379,60617.0,60616.0,0.001]
[1724949171395,0.23329379,60617.0,60614.0,0.08246]
[1724949171396,0.47979558,60617.0,60609.0,0.02042075]
[1724949171581,0.082469,60607.0,60606.0,0.129869]
[1724949171783,0.12285079,60607.0,60606.0,0.129869]
[1724949172684,0.12185079,60607.0,60606.0,0.129869]
[1724949173286,0.12785079,60607.0,60606.0,0.130869]
[1724949173485,0.1278544,60607.0,60606.0,0.130869]
[1724949173894,0.18247475,60607.0,60606.0,0.130869]
[1724949174098,0.18247475,60607.0,60606.0,0.083469]
[1724949174286,0.18247475,60607.0,60606.0,0.001]
[1724949174593,0.32901471,60607.0,60606.0,0.001]
[1724949175090,0.15143142,60607.0,60606.0,0.001]
[1724949175482,0.36409622,60607.0,60606.0,0.001]
[1724949175686,0.49701711,60607.0,60606.0,0.001]
[1724949175883,0.28452395,60607.0,60606.0,0.001]
[1724949176295,0.36699295,60607.0,60606.0,0.001]
[1724949176500,0.52966487,60607.0,60606.0,0.001]
[1724949176798,0.082478,60601.0,60600.0,0.26]
[1724949176987,0.31135143,60601.0,60600.0,0.26]
[1724949177298,0.35173683,60601.0,60600.0,0.26]
[1724949177703,0.61676493,60601.0,60600.0,0.26]
[1724949177898,0.525756,60601.0,60600.0,0.26]
[1724949178794,0.443278,60601.0,60600.0,0.26]
[1724949179005,0.3608,60601.0,60600.0,0.343479]
[1724949179189,0.3608,60601.0,60600.0,0.345479]
[1724949179389,0.01982445,60607.0,60600.0,0.427958]
[1724949179591,0.01982445,60607.0,60600.0,0.263]
[1724949179995,0.01982445,60607.0,60606.0,0.082471]
[1724949182793,0.02582445,60607.0,60606.0,0.082471]
[1724949183899,0.02982445,60607.0,60606.0,0.082471]
[1724949184601,0.01024743,60607.0,60606.0,0.164942]
[1724949185109,0.01024743,60607.0,60606.0,1.103213]
[1724949186693,0.01024743,60607.0,60606.0,1.703213]
[1724949186999,0.0038,60615.0,60614.0,0.16492]
[1724949187188,0.0038,60623.0,60622.0,0.164898]
[1724949187396,0.082437,60631.0,60624.0,0.082446]
[1724949187697,0.495935,60632.0,60624.0,0.3608]
[1724949187893,0.443235,60632.0,60624.0,0.3608]
[1724949188087,0.3608,60632.0,60631.0,0.082437]
[1724949188490,0.3608,60632.0,60623.0,0.0038]
[1724949188491,0.082437,60631.0,60623.0,0.0038]
[1724949188690,0.0973,60631.0,60623.0,0.082447]
[1724949188995,0.082448,60623.0,60622.0,0.00124743]
[1724949189200,0.082448,60623.0,60622.0,0.00024743]
[1724949190004,0.0462,60624.0,60614.0,0.0048]
[1724949190190,0.082453,60619.0,60611.0,0.444503]
[1724949190500,3.77,60618.0,60612.0,0.082462]
[1724949190698,0.08246,60614.0,60611.0,0.3608]
[1724949190891,0.08246,60614.0,60613.0,0.082461]
[1724949191201,0.08146,60614.0,60613.0,0.082461]
[1724949191604,0.08046,60614.0,60613.0,0.082461]
[1724949192194,0.081463,60612.0,60610.0,0.082465]
[1724949192393,0.082464,60611.0,60610.0,0.082465]
[1724949192599,0.081463,60612.0,60610.0,0.082465]
[1724949192903,0.05061603,60611.0,60610.0,0.082465]
[1724949193204,0.09099798,60611.0,60610.0,0.082465]
[1724949193407,0.09099798,60611.0,60610.0,0.083465]
[1724949193704,0.17246198,60611.0,60610.0,0.083465]
[1724949194499,0.18146198,60611.0,60610.0,0.084465]
[1724949194892,0.19146198,60611.0,60610.0,0.084465]
[1724949195100,0.082475,60603.0,60602.0,0.0038]
[1724949195291,0.04038195,60603.0,60597.0,0.01622827]
[1724949195491,0.1787374,60600.0,60597.0,0.01622827]
[1724949195699,0.04038706,60599.0,60598.0,0.443282]
[1724949195898,0.21912446,60599.0,60598.0,0.443282]
[1724949196501,0.04038706,60599.0,60598.0,0.447282]
[1724949196705,0.12286706,60599.0,60598.0,0.086482]
[1724949198103,0.12286706,60599.0,60598.0,0.090482]
[1724949198502,0.12286706,60599.0,60598.0,0.008]
[1724949199101,0.04038706,60599.0,60598.0,0.090482]
[1724949199310,0.20284755,60599.0,60598.0,0.172964]
[1724949199520,0.04038706,60599.0,60598.0,0.172964]
[1724949200012,0.08651743,60607.0,60606.0,0.082471]
[1724949200304,0.08271743,60607.0,60606.0,0.082471]
[1724949200504,0.082472,60605.0,60604.0,0.3608]